Cogmind - Beta 15 @@@ ROGUE MODE // 2025.05.23 @ 20:16:55 Player: Ciaphas Result: Destroyed by P-60 Hacker with Shock Rifle Performance ------------- Evolutions (3) 1500 Regions Visited (6) 1200 Robots Destroyed (84) 420 Value Destroyed (2628) 2628 Prototype IDs (28) 560 Alien Tech Used (0) 0 Bonus (498) 498 TOTAL SCORE: 6806 Bonus ------- High Alert Combat Kills 101 Follower Combat Kills 97 Aligned with FarCom 300 Cogmind --------- Core Integrity 0/700 Matter 144/300 Energy 49/100 System Corruption 3% Temperature Cool (0) Movement Core (50) Location -7/Factory Parts ------- > --- POWER (2) -------- (None) > --- PROPULSION (4) --- (None) > --- UTILITY (4) ------ Transmission Jammer > --- WEAPON (3) ------- (None) > --- INVENTORY (5) ---- Improved Cooling System Improved Targeting Computer Transmission Jammer Improved EM Pulse Cannon Peak State ------------ > --- POWER ------------ Light Deuterium Engine Light Nuclear Core > --- PROPULSION ------- Carbon-fiber Leg Carbon-fiber Leg Armored Huge Wheel > --- UTILITY ---------- Improved Heat Sink Large Storage Unit Structural Scanner Core Analyzer > --- WEAPON ----------- Enhanced Autogun Gauss Cannon Powered Hammer > --- INVENTORY -------- Improved Cooling System Improved Targeting Computer Improved Targeting Computer Core Analyzer Transmission Jammer Improved Light Armor Plating Improved Light Armor Plating Field Lobotomy Kit [Rating: 44] Favorites ----------- Power Ion Engine Engine Ion Engine Power Core Light Nuclear Core Propulsion Aluminum Leg Treads Light Treads Leg Aluminum Leg Wheel Wheel Flight Unit Xenon Bombardment Thruster Utility Medium Storage Unit Device Structural Scanner Storage Medium Storage Unit Processor Core Analyzer Protection Improved Light Armor Plating Weapon Enhanced Autogun Energy Gun Small Laser Energy Cannon Plasma Cannon Ballistic Gun Enhanced Autogun Ballistic Cannon Light Cannon Launcher Heavy Rocket Launcher Special Weapon Field Lobotomy Kit Impact Weapon Powered Hammer Build | -11 -10 -10 -10 -9 -8 -7 ------- Run | Yrd Mat Min Exi Min Mat Fac Slots Evolved 6 | . . . . . 4 2 Power 1 | . . . . . . 1 Propulsion 2 | . . . . . 1 1 Utility 2 | . . . . . 2 . Weapon 1 | . . . . . 1 . Parts Attached 67 | 1 13 1 1 . 30 21 Power 12 | . 4 . . . 5 3 Engine 5 | . 3 . . . 1 1 Core 7 | . 1 . . . 4 2 Reactor . | . . . . . . . Propulsion 22 | . 5 1 . . 9 7 Treads 2 | . . . . . 1 1 Leg 17 | . 5 1 . . 8 3 Wheel 2 | . . . . . . 2 Hover . | . . . . . . . Flight 1 | . . . . . . 1 Utility 15 | 1 2 . . . 7 5 Device 6 | 1 1 . . . 2 2 Storage 2 | . 1 . . . . 1 Processor 1 | . . . . . 1 . Hackware . | . . . . . . . Protection 6 | . . . . . 4 2 Artifact . | . . . . . . . Weapon 18 | . 2 . 1 . 9 6 Energy Gun 2 | . . . . . . 2 Energy Cannon 6 | . 1 . . . 4 1 Ballistic Gun 3 | . . . . . 3 . Ballistic Cannon 3 | . 1 . . . 1 1 Launcher 2 | . . . . . 1 1 Special Weapon 1 | . . . 1 . . . Impact Weapon 1 | . . . . . . 1 Slashing Weapon . | . . . . . . . Piercing Weapon . | . . . . . . . Special Melee Weapon . | . . . . . . . Unidentified Prototypes 3 | . . . . . 2 1 Corrupted Parts 1 | . . . . . 1 . System Corruption 1 | . . . . . 1 . Parts Lost 26 | . 1 . . . 13 12 Power 6 | . 1 . . . 3 2 Propulsion 8 | . . . . . 4 4 Utility 3 | . . . . . 2 1 Weapon 9 | . . . . . 4 5 Highest Loss Streak 7 | . 1 . . . 7 5 To Critical Strikes . | . . . . . . . Average Backups 8 | 1 6 8 8 9 9 7 Power . | 1 1 1 1 1 . . Propulsion . | . 1 1 1 1 . . Utility 5 | . 4 6 6 6 4 5 Weapon 1 | . . . . . 2 . Tool/Special . | . . . . . . . Unused Backups 26 | 11 . . . . 8 7 Power 4 | 1 . . . . 3 . Propulsion 6 | 6 . . . . . . Utility 10 | 1 . . . . 3 6 Weapon 5 | 3 . . . . 1 1 Tool/Special 1 | . . . . . 1 . Average Slot Usage (%) 88 | . 99 100 100 100 92 67 Engine 7 | . 13 14 14 14 7 . Core 2 | . . . . . 1 6 Treads 1 | . . . . . 1 4 Leg 22 | . 28 28 28 28 25 12 Device 11 | . 14 14 14 14 10 10 Storage 9 | . 14 14 14 14 9 5 Processor 3 | . . . . . 6 5 Protection 2 | . . . . . 5 1 Energy Gun 2 | . 10 . . . . . Energy Cannon 7 | . 3 14 14 14 10 4 Ballistic Gun 6 | . 6 . . . 9 4 Ballistic Cannon 6 | . 7 14 14 14 4 4 Peak Build Rating 44 | 9 10 8 17 9 39 44 Average Rating 20 | 6 8 8 8 9 27 27 On Entrance 10 | 6 9 8 8 9 9 26 Naked Turns 244 | . . . . . . 244 Heaviest Build 45 | 12 22 22 22 22 40 45 Greatest Support 40 | 20 20 20 20 20 38 40 Greatest Overweight (x) 10 | . 1 1 1 1 2 10 Average Overweight (x) . | . . 1 1 1 . . Largest Inventory Capacity 15 | 8 10 10 10 10 10 15 Average Capacity 9 | 8 9 10 10 10 10 9 Most Carried 10 | 5 10 10 9 9 10 10 Average Carried 8 | 1 7 8 8 9 9 7 Final Capacity 10 | 8 10 10 10 10 10 5 Final Carried 10 | 1 10 8 9 9 7 4 Class Distribution -------------------- 40% | Scavenger-Mutant 28% | Scavenger-Skirmisher 16% | Mutant 13% | Skirmisher Dominant Class ---------------- Scavenger-Mutant | -10/Materials Scavenger-Mutant | -10/Mines Scavenger-Mutant | -10/Exiles Scavenger-Mutant | -9/Mines Scavenger-Skirmisher | -8/Materials Scavenger-Skirmisher | -7/Factory Resources | -11 -10 -10 -10 -9 -8 -7 ----------- Run | Yrd Mat Min Exi Min Mat Fac Matter Collected 2311 | 227 508 61 . . 1092 423 Remotely . | . . . . . . . Salvage Created 2778 | 92 527 88 . . 1684 387 Parts 184 | 3 46 7 . . 100 28 Haulers Intercepted 4 | . 2 . . . 2 . Recyclers Shooed 3 | 1 . . . . 1 1 Parts Field Recycled . | . . . . . . . Retrieved Matter . | . . . . . . . Parts Self-Destructed . | . . . . . . . Prevented . | . . . . . . . Kills | -11 -10 -10 -10 -9 -8 -7 ------- Run | Yrd Mat Min Exi Min Mat Fac Combat Hostiles Destroyed 61 | . 12 5 . . 32 12 Guns 28 | . 8 . . . 18 2 Cannons 24 | . 4 5 . . 9 6 AOE 9 | . . . . . 5 4 Classes Destroyed 16 | 2 6 . . . 6 2 Worker 3 | . . . . . . 3 Builder 3 | . 1 . . . 1 1 Tunneler 1 | 1 . . . . . . Hauler 4 | . 2 . . . 2 . Recycler 2 | 1 . . . . 1 . Operator 2 | . 1 . . . 1 . Watcher 8 | . 3 . . . 4 1 Swarmer 17 | . 3 3 . . 4 7 Grunt 30 | . 9 2 . . 19 . Brawler 1 | . . . . . 1 . Duelist 1 | . . . . . 1 . Sentry 7 | . . . . . 4 3 Specialist 1 | . . . . . 1 . Hunter 2 | . . . . . 1 1 Programmer 1 | . . . . . . 1 Heavy 1 | . . . . . 1 . Best Kill Streak 8 | 2 3 3 . . 8 4 Combat Bots Only 8 | . 3 3 . . 8 3 Max Kills in Single Turn 3 | 1 1 1 . . 3 3 Gunslinging 1 | . . . . . 1 . Exploded 3 | . . . . . 3 3 Melee . | . . . . . . . Uniques/NPCs Destroyed . | . . . . . . . Combat | -11 -10 -10 -10 -9 -8 -7 -------- Run | Yrd Mat Min Exi Min Mat Fac Hostile Shots Fired 529 | . 60 21 . . 216 232 Missed 193 | . 22 6 . . 75 90 Hits 336 | . 38 15 . . 141 142 Melee 3 | . . . . . 3 . Projectile 333 | . 38 15 . . 138 142 AOE 3 | . . . . . . 3 Critical Strikes 10 | . . . . . 10 . Damage Taken 5258 | . 442 175 . . 2500 2141 Core 1167 | . 53 15 . . 389 710 Absorbed by Shields . | . . . . . . . Redirected to Shielding 38 | . . . . . 38 . Regen/Repaired (Parts) 70 | . . . . . . 70 Core Remaining (%) 67 | 100 . . . 72 29 . Volleys Fired 230 | 9 55 12 . . 104 50 Largest 3 | 2 2 2 . . 3 3 Hottest 185 | 60 70 90 . . 185 145 Shots Fired 487 | 16 108 24 . . 250 89 Gun 277 | 16 92 . . . 139 30 Cannon 200 | . 16 24 . . 106 54 Launcher 5 | . . . . . 3 2 Special 5 | . . . . . 2 3 Kinetic 317 | 9 55 12 . . 178 63 Thermal 150 | 7 53 12 . . 58 20 Explosive 5 | . . . . . 3 2 Electromagnetic 10 | . . . . . 9 1 Robot Hit Streak 11 | 6 9 6 . . 11 7 Robot Miss Streak 6 | 2 3 2 . . 6 2 Penetration Max 1 | . . . . . . 1 Secondary Targets 3 | . . . . . 3 . Max Gunslinging Chain 1 | . . . . . 1 . Shots Hit Robots 286 | 11 73 14 . . 133 55 Core Hits 133 | 3 30 6 . . 69 25 Critical Kills . | . . . . . . . Critical Parts Destroyed 1 | . . . . . . 1 Critical Strikes 4 | . . . . . . 4 Blast 3 | . . . . . . 3 Smash 1 | . . . . . . 1 Melee Attacks 2 | . . . . . . 2 Impact 2 | . . . . . . 2 Slashing . | . . . . . . . Piercing . | . . . . . . . Sneak Attacks 2 | . . . . . . 2 Combat Hostiles . | . . . . . . . Follow-up Attacks . | . . . . . . . Damage Inflicted 6610 | 144 950 253 . 5 3305 1953 Guns 2618 | 144 702 . . . 1376 396 Cannons 2589 | . 241 253 . . 1226 869 Explosions 1083 | . . . . . 693 390 Melee 209 | . . . . . . 209 Ramming 111 | . 7 . . 5 10 89 Kinetic 3458 | 88 574 114 . . 1729 953 Thermal 1835 | 56 369 139 . . 772 499 Explosive 825 | . . . . . 633 192 Electromagnetic 172 | . . . . . 161 11 Impact 209 | . . . . . . 209 Slashing . | . . . . . . . Piercing . | . . . . . . . Highest Corruption 3 | . . . . . 1 3 Average Corruption 2 | . . . . . 1 2 Corruption Purged . | . . . . . . . Corruption Blocked . | . . . . . . . Effects 6 | . . . . . 1 5 Message Errors 2 | . . . . . 1 1 Matter Fused 2 | . . . . . . 2 Energy Discharges 1 | . . . . . . 1 Alerts 1 | . . . . . . 1 Overload Shots . | . . . . . . . Overflow Damage 265 | . . . . . 26 239 Projectiles 48 | . . . . . 11 37 Explosions 48 | . . . . . 15 33 Melee 169 | . . . . . . 169 Knockbacks 12 | . 5 2 . . 2 3 Impact . | . . . . . . . Kinetic 12 | . 5 2 . . 2 3 Secondary . | . . . . . . . Self-Inflicted Damage 415 | . . . . . 200 215 Shots 9 | . . . . . 4 5 Rammed 18 | . . . . . . 18 Targets Rammed 27 | . 1 . . 1 2 23 Kicked 9 | . 1 . . 1 2 5 Crushed . | . . . . . . . Highest Temperature 285 | . 72 204 . . 285 242 Average Temperature 72 | . 21 80 . . 83 91 Received Heat Transfer 1128 | . 198 69 . . 648 213 Effects 2 | . . . . . 2 . Energy Bleed 2 | . . . . . 2 . Siege Activations . | . . . . . . . Martial Activations . | . . . . . . . Shielding Activations . | . . . . . . . Robots Disrupted . | . . . . . . . Combat Hostiles . | . . . . . . . Robots Corrupted . | . . . . . . . Combat Hostiles . | . . . . . . . Parts Fried 3 | . . . . . . 3 Impact Corruptions 4 | . . . . . . 4 Robots Melted . | . . . . . . . Combat Hostiles . | . . . . . . . Parts Melted 2 | . 1 . . . 1 . Heat Transferred 3283 | 125 825 296 . . 1472 565 Parts Sabotaged . | . . . . . . . Parts Stolen . | . . . . . . . Parts Stripped . | . . . . . . . Power Chain Reactions 1 | . . . . . . 1 Alert | -11 -10 -10 -10 -9 -8 -7 ------- Run | Yrd Mat Min Exi Min Mat Fac Maximum Alert Level 2 | . . . . . 2 . Low Security (%) 75 | 100 100 100 . 100 38 100 Level 1 20 | . . . . . 51 . Level 2 4 | . . . . . 10 . Level 3 . | . . . . . . . Level 4 . | . . . . . . . Level 5 . | . . . . . . . High Security . | . . . . . . . Max Security . | . . . . . . . Peak Influence 548 | 5 81 60 . . 548 188 Initial 165 | . . . . . . 165 Average 110 | 2 28 16 . . 208 70 Influence Increases 2278 | 10 391 120 . . 1146 611 Destroy 0b10 Robot/C 1280 | . 240 100 . . 700 240 Destroy 0b10 Robot/NC 115 | 10 35 . . . 45 25 Destroy Leader 314 | . 60 20 . . 162 72 Allied During Kill 5 | . . . . . 5 . Successful Hack 63 | . 25 . . . 9 29 Select Force Hacks 60 | . . . . . 60 . Disable Machine 105 | . . . . . 45 60 Destroy Structure 126 | . 1 . . . 60 65 Lose Combat Pursuer 210 | . 30 . . . 60 120 Influence Decreases 2114 | 10 391 120 . . 782 811 Entered New Map 199 | . . . . . . 199 Time Decay 1465 | 10 381 120 . . 492 462 Lost Part 250 | . 10 . . . 120 120 Lost Ally 50 | . . . . . 20 30 Purge Threat 150 | . . . . . 150 . Squads Dispatched 18 | . 2 . . . 10 6 Investigation 6 | . 2 . . . 4 . Extermination 3 | . . . . . . 3 Reinforcement 8 | . . . . . 6 2 Assault . | . . . . . . . Garrison 1 | . . . . . . 1 Intercept . | . . . . . . . Searches Triggered . | . . . . . . . Construction Impeded 1 | . . . . . 1 . Haulers Reinforced . | . . . . . . . Active Scanning Responses . | . . . . . . . Cargo Convoy Interrupts . | . . . . . . . Stealth | -11 -10 -10 -10 -9 -8 -7 --------- Run | Yrd Mat Min Exi Min Mat Fac Distress Signals 4 | . . . . . 3 1 Communications Jammed . | . . . . . . . Distress Signals . | . . . . . . . Times Spotted 101 | . 20 5 . . 50 26 Peak Tracking Total 9 | . 4 3 . . 8 9 Tactical Retreats 8 | . 2 . . . 3 3 Traps | -11 -10 -10 -10 -9 -8 -7 ------- Run | Yrd Mat Min Exi Min Mat Fac Traps Triggered 4 | . 2 . . . 2 . Indirectly . | . . . . . . . Trap Hack Attempts . | . . . . . . . Triggered . | . . . . . . . Disarmed . | . . . . . . . Reprogrammed . | . . . . . . . Reused . | . . . . . . . Traps Extracted . | . . . . . . . Installed . | . . . . . . . Triggered . | . . . . . . . Machines | -11 -10 -10 -10 -9 -8 -7 ---------- Run | Yrd Mat Min Exi Min Mat Fac Machines Disabled 7 | . . . . . 3 4 Max in Single Turn 2 | . . . . . 1 2 Garrison Access 1 | . . . . . . 1 Machines Repaired . | . . . . . . . Machines Dismantled . | . . . . . . . Machines Sabotaged . | . . . . . . . Overloaded Fab Kills . | . . . . . . . Hacking | -11 -10 -10 -10 -9 -8 -7 --------- Run | Yrd Mat Min Exi Min Mat Fac Machines Accessed 21 | . 7 . 2 . 5 7 Terminals 13 | . 5 . . . 3 5 Fabricators . | . . . . . . . Repair Stations 1 | . . . . . . 1 Recycling Units 3 | . 2 . . . 1 . Scanalyzers 1 | . . . . . 1 . Garrison Access 1 | . . . . . . 1 Total Hacks 47 | . 18 . 5 . 10 14 Successful 28 | . 9 . 5 . 7 7 Failed 19 | . 9 . . . 3 7 Catastrophic 2 | . . . . . 1 1 Database Lockouts . | . . . . . . . Manual 31 | . 11 . 1 . 9 10 Terminals 33 | . 14 . . . 8 11 Fabricators . | . . . . . . . Repair Stations 2 | . . . . . . 2 Recycling Units 5 | . 4 . . . 1 . Scanalyzers 1 | . . . . . 1 . Garrison Access 1 | . . . . . . 1 Terminal Hacks 11 | . 3 . 5 . 2 1 Record 4 | . . . 4 . . . Prototype ID Bank 1 | . 1 . . . . . Alert Level 3 | . 1 . . . 1 1 Unreport Threat 1 | . . . . . 1 . Locate Traps 1 | . 1 . . . . . Proto ID Catalog 1 | . . . 1 . . . Fabricator Hacks . | . . . . . . . Repair Station Hacks 2 | . . . . . . 2 Scan Component 1 | . . . . . . 1 Repair 1 | . . . . . . 1 Recycling Unit Hacks 1 | . 1 . . . . . Report Inventory 1 | . 1 . . . . . Scanalyzer . | . . . . . . . Garrison Access Hacks 1 | . . . . . . 1 Seal Access 1 | . . . . . . 1 Unauthorized Hacks 13 | . 5 . . . 5 3 Terminals 11 | . 5 . . . 3 3 Botnet 4 | . 2 . . . 1 1 Skim 7 | . 3 . . . 2 2 Fabricators . | . . . . . . . Repair Stations . | . . . . . . . Recycling Units 1 | . . . . . 1 . Tunnel 1 | . . . . . 1 . Scanalyzers 1 | . . . . . 1 . Extract 1 | . . . . . 1 . Garrison Access . | . . . . . . . Data Cores Recovered 1 | . 1 . . . . . Used . | . . . . . . . Hacking Detections 14 | . 5 . . . 3 6 Full Trace Events . | . . . . . . . Feedback Events . | . . . . . . . Feedback Blocked . | . . . . . . . Robot Schematics Acquired . | . . . . . . . Robots Built . | . . . . . . . Authchips . | . . . . . . . Time . | . . . . . . . Total Robot Build Rating . | . . . . . . . Part Schematics Acquired 2 | . . . . . 2 . Parts Built . | . . . . . . . Authchips . | . . . . . . . Time . | . . . . . . . Total Part Build Rating . | . . . . . . . Parts Repaired 1 | . . . . . . 1 Time 38 | . . . . . . 38 Parts Recycled . | . . . . . . . Recycled Matter . | . . . . . . . Retrieved Matter . | . . . . . . . Retrieved Components . | . . . . . . . Parts Scanalyzed . | . . . . . . . Part Schematics Acquired . | . . . . . . . Parts Damaged . | . . . . . . . Bothacking | -11 -10 -10 -10 -9 -8 -7 ------------ Run | Yrd Mat Min Exi Min Mat Fac Used RIF Installer . | . . . . . . . Robots Hacked . | . . . . . . . Non-combat . | . . . . . . . Combat . | . . . . . . . Robot Hacks Applied . | . . . . . . . Relay Couplers Released 3 | . . . . . . 3 Machine Destruction 3 | . . . . . . 3 Fabnet Peak Effective % . | . . . . . . . Robots Rewired . | . . . . . . . Allies Hacked . | . . . . . . . Hacks Repelled . | . . . . . . . Allies | -11 -10 -10 -10 -9 -8 -7 -------- Run | Yrd Mat Min Exi Min Mat Fac Total Allies 3 | . . . . . 1 2 Largest Group 1 | . . . . . 1 1 Highest-Rated Group 32 | . . . . . 21 32 Highest-Rated Ally 32 | . . . . . 21 32 Total Orders . | . . . . . . . Ally Attacks 11 | . . . . . 9 2 Total Damage 281 | . . . . . 217 64 Kills 3 | . . . . . 3 . Allies Corrupted . | . . . . . . . Allies Melted . | . . . . . . . Field Lobotomies 3 | . . . . . 1 2 Intel | -11 -10 -10 -10 -9 -8 -7 ------- Run | Yrd Mat Min Exi Min Mat Fac Active Infowar (turns) 4693 | 7 1381 344 483 213 1120 1145 Terrain 435 | 7 428 . . . . . Structural 4243 | . 953 344 483 213 1120 1130 Jamming 15 | . . . . . . 15 Robot Analysis Total . | . . . . . . . Derelict Logs Recovered 3 | . . 2 . 1 . . Drone Launches . | . . . . . . . Drone Recoveries . | . . . . . . . Exploration | -11 -10 -10 -10 -9 -8 -7 ------------- Run | Yrd Mat Min Exi Min Mat Fac Turns Passed 6773 | 46 1381 344 483 213 2517 1789 Spaces Moved 3744 | 15 850 161 253 112 854 1499 Core 603 | . . . . . . 603 Treads 17 | . . . . . 13 4 Legs 2876 | 15 850 161 253 112 841 644 Wheels 99 | . . . . . . 99 Hover . | . . . . . . . Flight 149 | . . . . . . 149 Fastest Speed 45 | 120 120 190 190 190 120 45 Average Speed 132 | 120 135 190 190 190 150 100 Slowest Speed 550 | 120 190 190 190 190 260 550 Overloaded Moves . | . . . . . . . Propulsion Burnouts . | . . . . . . . Robots Hopped 3 | . . . . . . 3 Potential Cave-ins . | . . . . . . . Cave-ins Triggered . | . . . . . . . Exploration Rate (%) 48 | 3 99 43 66 32 58 36 Regions Visited 6 Branch Regions 3 Pre-discovered Areas 4 | . . 1 1 1 1 . Known Exits Taken 2 | . . . 1 . 1 . Unknown Exits Taken 4 | 1 1 1 . 1 . . Scrap Searched 1 | . . 1 . . . . Spaces Dug 6 | . . . . . 3 3 Terrain Destroyed 159 | . . . . . 98 61 Melee . | . . . . . . . Projectile 39 | . . . . . 25 14 AOE 120 | . . . . . 73 47 Terrain Rammed . | . . . . . . . Walls Destroyed . | . . . . . . . Machines Disabled . | . . . . . . . Actions | -11 -10 -10 -10 -9 -8 -7 --------- Run | Yrd Mat Min Exi Min Mat Fac Total 5168 | 29 969 177 256 112 1933 1692 Wait 993 | . 37 1 . . 881 74 Move 3732 | 14 849 160 252 111 853 1493 Hop 3 | . . . . . . 3 Pick Up 33 | . 5 . 1 . 19 8 Fast Attach 35 | 1 3 . . . 16 15 Attach 19 | . 1 . 1 . 9 8 Detach 13 | . 2 . 1 . 7 3 Swap 34 | . 9 1 1 . 15 8 Drop 47 | 5 7 3 . . 27 5 Fire 230 | 9 55 12 . . 104 50 Melee 2 | . . . . . . 2 Ram 18 | . . . . . . 18 Kick 9 | . 1 . . 1 2 5 Crush . | . . . . . . . Escape Stasis . | . . . . . . . Rewire . | . . . . . . . Trap . | . . . . . . . Miscellaneous . | . . . . . . . Route ------- -11/Scrapyard -10/Materials (discovered 6 exits: [*Mat x3] / [*Min x2] / [*Sub]) -10/Mines -10/Exiles (discovered 2 exits: *Min x2) -9/Mines -8/Materials (discovered 5 exits: *Fac x3 / *Sto x2) -7/Factory (discovered 1 exit: [*Low]) History --------- Turn | Location | Event 29 | -11/Scrapyard | Discovered new exit (range 1) 47 | -11/Scrapyard | Entered Materials 220 | -10/Materials | Discovered new exit (range 13) 308 | -10/Materials | Build established: Mutant 386 | -10/Materials | Discovered new exit (range 11) 477 | -10/Materials | Discovered new exit (range 7) 592 | -10/Materials | Discovered new exit (range 16) 788 | -10/Materials | Discovered new exit (range 13) 999 | -10/Materials | Build established: Scavenger-Mutant 1046 | -10/Materials | Discovered new exit (range 15) 1428 | -10/Materials | Entered Mines 1698 | -10/Mines | Learned 8 Materials zone layouts 1750 | -10/Mines | Learned location of Storage (-8) 1764 | -10/Mines | Deemed a non-threat by the Exiles lab entrance 1764 | -10/Mines | Discovered new exit (range 5) 1772 | -10/Mines | Entered Exiles 1773 | -10/Exiles | Identified exit to Mines 1816 | -10/Exiles | Met 8R-AWN 1850 | -10/Exiles | Met EX-HEX 1911 | -10/Exiles | Met EX-BIN 1934 | -10/Exiles | Aligned with FarCom system 1936 | -10/Exiles | Given EX-Vault access code 1987 | -10/Exiles | Opened EX-Vault 1999 | -10/Exiles | Found Field Lobotomy Kit 2037 | -10/Exiles | Warned to stay clear of 0b10 Research branches 2096 | -10/Exiles | Met EX-DEC 2107 | -10/Exiles | Learned location of Zion (-6) 2255 | -10/Exiles | Left Exiles lab with Field Lobotomy Kit 2255 | -10/Exiles | Entered Mines 2436 | -9/Mines | Discovered new exit (range 5) 2468 | -9/Mines | Entered Materials 2468 | -8/Materials | Evolved 4 slots: Propulsion x1, Utility x2, Weapon x1 2469 | -8/Materials | Identified exit to Factory 2469 | -8/Materials | Identified exit to Storage 3219 | -8/Materials | Build established: Scavenger-Skirmisher 3222 | -8/Materials | Destroyed 7 combat bots 3499 | -8/Materials | Discovered exit to Storage (range 9) 3518 | -8/Materials | Assimilated H-55 Commando with FLK Orb 3634 | -8/Materials | Build established: Skirmisher 3669 | -8/Materials | Discovered exit to Factory (range 8) 3946 | -8/Materials | Build established: Scavenger-Skirmisher 4329 | -8/Materials | Build established: Skirmisher 4671 | -8/Materials | Core integrity fell below 50% 4714 | -8/Materials | Lost 7 parts (1p2n1u3w) 4716 | -8/Materials | Destroyed 8 combat bots 4985 | -8/Materials | Entered Factory 4985 | -7/Factory | Evolved 2 slots: Power x1, Propulsion x1 5140 | -7/Factory | Assimilated O-24 Administrator with FLK Orb 5320 | -7/Factory | Discovered new exit (range 15) 5427 | -7/Factory | Build established: Scavenger-Skirmisher 6111 | -7/Factory | Repaired Carbon-fiber Leg 6315 | -7/Factory | Build established: Scavenger-Mutant 6318 | -7/Factory | Released all parts (8) 6367 | -7/Factory | Lost 5 parts (1p1n3w) 6529 | -7/Factory | Garrison activated, responded to threat 6559 | -7/Factory | Assimilated Y-54 Guardian with FLK Orb 6570 | -7/Factory | Released all parts (5) 6572 | -7/Factory | Core integrity fell below 50% 6608 | -7/Factory | Core integrity fell below 20% 6617 | -7/Factory | Build established: Mutant 6774 | -7/Factory | Destroyed by P-60 Hacker with Shock Rifle Last Messages --------------- 06570_ Released Ion Cannon. 06570_ Released Imp. Carbon-fiber Leg. 06570_ Released Xenon Bombardment Thruster. 06570_ Released Imp. Spread Laser. 06571_ Slammed into S-27 Virus. 06575_ Slammed into K-01 Serf. 06590_ Slammed into S-27 Virus. 06616_ System corrupted: Energy discharge (-29). 06636_ ALERT: Potential suspicious activity detected, Programmers report to Factory Zone 8S. 06640_ Acquired Imp. EM Pulse Cannon. 06660_ Acquired 7 matter. 06664_ Acquired 15 matter. 06667_ U-05 Engineer lays Concrete. 06679_ Slammed into K-01 Serf. 06738_ Acquired Transmission Jammer. 06748_ Acquired 42 matter. 06753_ System corrupted: Matter fused (-7). 06768_ Acquired Missile Launcher. 06774_ Missile Launcher destroyed. Map ----- +----------------------------------------------------+ | ????????????????????????# """ #?### # #####?# | | ????????????????????????# #???### #####?#! | | ????????????????????????# """ #?????# ### #?##### | | ????????????????????????# """ ####### ##"%###?## | | ????????????????????????# """ #######+### ###?## | | ????????????????????????# # ##?## | | ????????????????????????# ! #!!! ###?# | | ????????????????????????# #!!! " #?# | | ????????????????????????########!! # ### | | ?????????????????????????????? # ###### | | ????????????????????????? ??? # + | | ????????????????????????? "?? # # | | ????????????????????????? "???# # | | ????????????????????????? ???# # | | ????????????????????????? ???# # | | ????????????????????????? ???# # | | ????????????????????????? ???# # " | | ?????????????###+######## ##############+### | | ???????????? / | | ???????????? / | | ???????????? | | ???????????????????##### ############+### | | ??????????????????????# p # # #### | | ??????????????????????# # / #### | | ??????????????????????# # ###### | | ??????????????????????# @ # ###### | | ??????????????????????# # ###### | | ??????????????????????# # + | | ??????????????????????# = # ### | | ??????????????????????# ! # ### | | ??????????????????????# ]# ### | | ??????????????????????########## ### | | ???????????????????????????????# ### | | ???????????????????????????????# ### | | ???????????????????????????????################ | | ?????????????????????????????????????????????## | | ?????????????????????????????????????????????## | | ?????????????????????????????????????????????##### | | ?????????????????????????????????????????????##### | | ?????????????????????????????????????????????????? | | ?????????????????????????????????????????????????? | | ?????????????????????????????????????????????????? | | | | | | | | | | | | | | | | | +----------------------------------------------------+ Best States ------------- Heat Dissipation 48 Energy Generation 23 Energy Capacity 280 Matter Stores 300 Matter Capacity 300 Sight Range 16 Terrain Scan Range 16 Terrain Scan Density 10 Jamming Range 12 Armor Coverage 225 Propulsion Shielding 66 Evasion (%) 61 Core Analysis 6 Recoil Reduction 1 Item Schematics ----------------- Hardlight Generator | -8/Materials | Extracted Hacking Suite | -8/Materials | Extracted Robot Schematics ------------------ None Fabricated ------------ Nothing Repaired ---------- Carbon-fiber Leg | 36% | -7/Factory Alien Tech Used ----------------- None Achievements -------------- None Challenges ------------ None Game ------ Seed SmartbombCloakRay Manual? 0 Play Time 01:02:17 Cumulative 58.1 hours Start 2025.05.23 @ 18:56:55 End 2025.05.23 @ 20:16:55 Sessions 1 Manual Loads 0 Difficulty Rogue Special Mode None Game No. 79 Rogue 79 Adventurer 0 Explorer 0 Win Type - Total 2 Types 2/0/0/0/0/0/0/0/0/0 Lore% 32 Gallery% 35 Achievement% 37 Wizard Run 0 Options --------- Layout 0 ASCII 0 Keyboard 0 Movement Numpad Keybinds 0 Fullscreen 2 Font 24/Tamsyn Map View 76x50 Zoom Use 0% Tactical HUD 1 Map Filters NONE Filters NONE Steam 1 RUN: 3400a663-b044-42ce-a174-7d5df3cd2f1e